fUSD/lending_fUSD_20250611
["ID","MTS","AMOUNT","RATE_DAILY","PERIOD"]
[365335772,1749605446430,-456.54498176,0.00016602,2]
[365335773,1749605446440,-475.21456794,0.00016602,2]
[365335774,1749605446449,-2818.71544891,0.00016734,2]
[365335775,1749605446459,-607.28,0.00016767,2]
[365335776,1749605446468,-237.68,0.00016767,2]
[365335777,1749605446476,-490.0,0.00016767,2]
[365335778,1749605446485,-361.52,0.00016767,2]
[365335779,1749605446494,-303.65,0.00016767,2]
[365335780,1749605446503,-417.09,0.00016767,2]
[365335781,1749605446512,-579.86,0.00016767,2]
[365335782,1749605446521,-213.34,0.00016767,2]
[365335783,1749605446530,-490.0,0.00016767,2]
[365335784,1749605446539,-490.0,0.00016767,2]
[365335785,1749605446548,-277.37,0.00016767,2]
[365335786,1749605446557,-490.0,0.00016767,2]
[365335787,1749605446566,-490.0,0.00016767,2]
[365335788,1749605446575,-374.29581401,0.00016767,2]
[365335789,1749605446584,-490.0,0.00016767,2]
[365335790,1749605446593,-490.0,0.00016767,2]
[365335791,1749605446603,-490.0,0.00016767,2]
[365335792,1749605446611,-420.0,0.00016767,2]
[365335793,1749605446620,-490.0,0.00016767,2]
[365335794,1749605446629,-490.0,0.00016767,2]
[365335795,1749605446638,-490.0,0.00016767,2]
[365335796,1749605446648,-490.0,0.00016767,2]
[365335797,1749605446657,-220.0,0.00016767,2]
[365335798,1749605446668,-490.0,0.00016767,2]
[365335799,1749605446677,-165.51653398,0.00016767,2]
[365335800,1749605446686,-490.0,0.00016767,2]
[365335801,1749605446699,-490.0,0.00016767,2]
[365335802,1749605446709,-198.61,0.00016767,2]
[365335803,1749605446718,-490.0,0.00016767,2]
[365335804,1749605446727,-490.0,0.00016767,2]
[365335805,1749605446736,-220.0,0.00016767,2]
[365335806,1749605446745,-220.0,0.00016767,2]
[365335807,1749605446754,-490.0,0.00016767,2]
[365335808,1749605446764,-591.14,0.00016767,2]
[365335809,1749605446773,-399.73713642,0.00016767,2]
[365335810,1749605446782,-490.0,0.00016767,2]
[365335811,1749605446791,-490.0,0.00016767,2]
[365335812,1749605446800,-490.0,0.00016767,2]
[365335813,1749605446810,-490.0,0.00016767,2]
[365335814,1749605446819,-370.43264577,0.00016767,2]
[365335815,1749605446828,-490.0,0.00016767,2]
[365335816,1749605446838,-490.0,0.00016767,2]
[365335817,1749605446847,-506.44,0.00016767,2]
[365335818,1749605446857,-490.0,0.00016767,2]
[365335819,1749605446866,-490.0,0.00016767,2]
[365335820,1749605446875,-490.0,0.00016767,2]
[365335821,1749605446886,-490.0,0.00016767,2]
[365335822,1749605446896,-490.0,0.00016767,2]
[365335823,1749605446905,-490.0,0.00016767,2]
[365335824,1749605446918,-490.0,0.00016767,2]
[365335825,1749605446932,-168.13929409,0.00016767,2]
[365335826,1749605446942,-160.25,0.00016767,2]
[365335827,1749605446951,-490.0,0.00016767,2]
[365335828,1749605446961,-423.84,0.00016767,2]
[365335829,1749605446971,-490.0,0.00016767,2]
[365335830,1749605446981,-490.0,0.00016767,2]
[365335831,1749605446990,-490.0,0.00016767,2]
[365335832,1749605447000,-490.0,0.00016767,2]
[365335833,1749605447010,-490.0,0.00016767,2]
[365335834,1749605447020,-410.0,0.00016767,2]
[365335835,1749605447030,-490.0,0.00016767,2]
[365335836,1749605447039,-624.53,0.00016767,2]
[365335837,1749605447048,-490.0,0.00016767,2]
[365335838,1749605447058,-490.0,0.00016767,2]
[365335839,1749605447067,-490.0,0.00016767,2]
[365335840,1749605447077,-490.0,0.00016767,2]
[365335841,1749605447087,-490.0,0.00016767,2]
[365335842,1749605447096,-152.63,0.00016767,2]
[365335843,1749605447106,-490.0,0.00016767,2]
[365335844,1749605447115,-303.3,0.00016767,2]
[365335845,1749605447126,-216.59,0.00016767,2]
[365335846,1749605447137,-308.17588698,0.00016767,2]
[365335847,1749605447147,-490.0,0.00016767,2]
[365335848,1749605447157,-219.82,0.00016767,2]
[365335849,1749605447169,-360.2,0.00016767,2]
[365335850,1749605447180,-191.24,0.00016767,2]
[365335851,1749605447190,-438.0,0.00016767,2]
[365335852,1749605447200,-443.09,0.00016767,2]
[365335853,1749605447210,-166.66,0.00016767,2]
[365335854,1749605447219,-490.0,0.00016767,2]
[365335855,1749605447229,-420.0,0.00016767,2]
[365335856,1749605447239,-190.58971529,0.00016767,2]
[365335857,1749605447248,-490.0,0.00016767,2]
[365335858,1749605447257,-490.0,0.00016767,2]
[365335859,1749605447266,-556.43,0.00016767,2]
[365335860,1749605447275,-490.0,0.00016767,2]
[365335861,1749605447284,-219.9270195,0.00016767,2]
[365335862,1749605447294,-490.0,0.00016767,2]
[365335863,1749605447304,-490.0,0.00016767,2]
[365335864,1749605447313,-490.0,0.00016767,2]
[365335865,1749605447323,-490.0,0.00016767,2]
[365335866,1749605447333,-330.0,0.00016767,2]
[365335867,1749605447342,-490.0,0.00016767,2]
[365335868,1749605447352,-895.27,0.00016767,2]
[365335869,1749605447363,-620.69,0.00016767,2]
[365335870,1749605447373,-490.0,0.00016767,2]
[365335871,1749605447385,-534.44,0.00016767,2]
[365335872,1749605447395,-490.0,0.00016767,2]
[365335873,1749605447406,-430.0,0.00016767,2]
[365335874,1749605447420,-490.0,0.00016767,2]
[365335875,1749605447430,-490.0,0.00016767,2]
[365335876,1749605447440,-530.56,0.00016767,2]
[365335877,1749605447451,-490.0,0.00016767,2]
[365335878,1749605447461,-1094.07,0.00016767,2]
[365335879,1749605447470,-565.08487922,0.00016767,2]
[365335880,1749605447479,-490.0,0.00016767,2]
[365335881,1749605447488,-490.0,0.00016767,2]
[365335882,1749605447497,-490.0,0.00016767,2]
[365335883,1749605447507,-490.0,0.00016767,2]
[365335884,1749605447516,-695.39,0.00016767,2]
[365335885,1749605447525,-490.0,0.00016767,2]
[365335886,1749605447534,-490.0,0.00016767,2]
[365335887,1749605447544,-490.0,0.00016767,2]
[365335888,1749605447553,-490.0,0.00016767,2]
[365335889,1749605447562,-490.0,0.00016767,2]
[365335890,1749605447572,-211.93953472,0.00016767,2]
[365335891,1749605447581,-490.0,0.00016767,2]
[365335892,1749605447591,-490.35405857,0.00016767,2]
[365335893,1749605447600,-490.0,0.00016767,2]
[365335894,1749605447609,-490.0,0.00016767,2]
[365335895,1749605447618,-356.23409101,0.00016767,2]
[365335896,1749605447627,-490.0,0.00016767,2]
[365335897,1749605447636,-490.0,0.00016767,2]
[365335898,1749605447645,-197.15863178,0.00016831,2]
[365335899,1749605447654,-490.0,0.00016931,2]
[365335900,1749605447663,-490.0,0.00016931,2]
[365335901,1749605447674,-490.0,0.00016931,2]
[365335902,1749605447683,-490.0,0.00016931,2]
[365335903,1749605447692,-490.0,0.00016931,2]
[365335904,1749605447701,-410.0,0.00016931,2]
[365335905,1749605447710,-237.9,0.00016931,2]
[365335906,1749605447719,-490.0,0.00016931,2]
[365335907,1749605447728,-490.0,0.00016931,2]
[365335908,1749605447737,-296.00656756,0.00016931,2]
[365335909,1749605447746,-490.0,0.00016931,2]
[365335910,1749605447755,-490.0,0.00016931,2]
[365335911,1749605447764,-490.0,0.00016931,2]
[365335912,1749605447773,-490.0,0.00016931,2]
[365335913,1749605447783,-490.0,0.00016931,2]
[365335914,1749605447792,-490.0,0.00016931,2]
[365335915,1749605447801,-490.0,0.00016931,2]
[365335916,1749605447810,-490.0,0.00016931,2]
[365335917,1749605447819,-490.0,0.00016931,2]
[365335918,1749605447828,-290.0,0.00016931,2]
[365335919,1749605447838,-490.0,0.00016931,2]
[365335920,1749605447848,-490.0,0.00016931,2]
[365335921,1749605447857,-420.0,0.00016931,2]
[365335922,1749605447867,-490.0,0.00016931,2]
[365335923,1749605447877,-490.0,0.00016931,2]
[365335924,1749605447886,-490.0,0.00016931,2]
[365335925,1749605447895,-457.80933492,0.00016931,2]
[365335926,1749605447905,-490.0,0.00016931,2]
[365335927,1749605447917,-430.0,0.00016931,2]
[365335928,1749605447929,-490.0,0.00016931,2]
[365335929,1749605447939,-490.0,0.00016931,2]
[365335930,1749605447948,-593.78,0.00016931,2]
[365335931,1749605447958,-400.0,0.00016931,2]
[365335932,1749605447968,-420.0,0.00016931,2]
[365335933,1749605447978,-490.0,0.00016931,2]
[365335934,1749605447987,-471.55565959,0.00016931,2]
[365335935,1749605447999,-490.0,0.00016931,2]
[365335936,1749605448012,-490.0,0.00016931,2]
[365335937,1749605448022,-490.0,0.00016931,2]
[365335938,1749605448032,-490.0,0.00016931,2]
[365335939,1749605448042,-518.92,0.00016931,2]
[365335940,1749605448052,-490.0,0.00016931,2]
[365335941,1749605448062,-490.0,0.00016931,2]
[365335942,1749605448071,-490.0,0.00016931,2]
[365335943,1749605448081,-228.47,0.00016931,2]
[365335944,1749605448091,-413.96,0.00016931,2]
[365335945,1749605448101,-490.0,0.00016931,2]
[365335946,1749605448110,-556.43,0.00016931,2]
[365335947,1749605448119,-410.0,0.00016931,2]
[365335948,1749605448128,-410.0,0.00016931,2]
[365335949,1749605448138,-490.0,0.00016931,2]
[365335950,1749605448147,-229.09,0.00016931,2]
[365335951,1749605448157,-490.0,0.00016931,2]
[365335952,1749605448169,-490.0,0.00016931,2]
[365335953,1749605448178,-895.27,0.00016931,2]
[365335954,1749605448188,-576.04,0.00016931,2]
[365335955,1749605448197,-490.0,0.00016931,2]
[365335956,1749605448207,-430.0,0.00016931,2]
[365335957,1749605448216,-500.87,0.00016931,2]
[365335958,1749605448225,-490.0,0.00016931,2]
[365335959,1749605448234,-1094.07,0.00016931,2]
[365335960,1749605448243,-490.0,0.00016931,2]
[365335961,1749605448252,-226.40827564,0.00016931,2]
[365335962,1749605448262,-490.0,0.00016931,2]
[365335963,1749605448271,-490.0,0.00016931,2]
[365335964,1749605448280,-695.39,0.00016931,2]
[365335965,1749605448289,-490.0,0.00016931,2]
[365335966,1749605448299,-490.0,0.00016931,2]
[365335967,1749605448308,-462.28424384,0.00016931,2]
[365335968,1749605448318,-531.12953002,0.00016931,2]
[365335969,1749605448327,-490.0,0.00016931,2]
[365335970,1749605448336,-490.0,0.00016931,2]
[365335971,1749605448345,-490.0,0.00016931,2]
[365335972,1749605448354,-490.0,0.00016931,2]
[365335973,1749605448363,-490.0,0.00016931,2]
[365335974,1749605448373,-490.0,0.00016931,2]
[365335975,1749605448382,-490.0,0.00017095,2]
[365335976,1749605448391,-490.0,0.00017095,2]
[365335977,1749605448400,-430.0,0.00017095,2]
[365335978,1749605448410,-388.8914729,0.00017095,2]
[365335979,1749605448422,-490.0,0.00017095,2]
[365335980,1749605448431,-432.62,0.00017095,2]
[365335981,1749605448441,-490.0,0.00017095,2]
[365335982,1749605448451,-490.0,0.00017095,2]
[365335983,1749605448461,-242.77,0.00017095,2]
[365335984,1749605448470,-490.0,0.00017095,2]
[365335985,1749605448480,-379.1611398,0.00017095,2]
[365335986,1749605448489,-460.0,0.00017095,2]
[365335987,1749605448499,-340.76,0.00017095,2]
[365335988,1749605448508,-490.0,0.00017095,2]
[365335989,1749605448517,-490.0,0.00017095,2]
[365335990,1749605448526,-490.0,0.00017095,2]
[365335991,1749605448535,-490.0,0.00017095,2]
[365335992,1749605448545,-490.0,0.00017095,2]
[365335993,1749605448556,-531.8,0.00017095,2]
[365335994,1749605448565,-490.0,0.00017095,2]
[365335995,1749605448575,-490.0,0.00017095,2]
[365335996,1749605448584,-556.43,0.00017095,2]
[365335997,1749605448594,-490.0,0.00017095,2]
[365335998,1749605448603,-490.0,0.00017095,2]
[365335999,1749605448612,-363.74,0.00017095,2]
[365336000,1749605448621,-895.27,0.00017095,2]
[365336001,1749605448631,-490.0,0.00017095,2]
[365336002,1749605448640,-272.28,0.00017095,2]
[365336003,1749605448650,-1094.07,0.00017095,2]
[365336004,1749605448659,-490.0,0.00017095,2]
[365336005,1749605448670,-490.0,0.00017095,2]
[365336006,1749605448679,-490.0,0.00017095,2]
[365336007,1749605448688,-695.39,0.00017095,2]
[365336008,1749605448697,-490.0,0.00017095,2]
[365336009,1749605448707,-490.0,0.00017095,2]
[365336010,1749605448717,-157.12205838,0.00017095,2]
[365336011,1749605448726,-490.0,0.00017095,2]
[365336012,1749605448735,-490.0,0.00017095,2]
[365336013,1749605448744,-490.0,0.00017095,2]
[365336014,1749605448753,-490.0,0.00017095,2]
[365336015,1749605448762,-490.0,0.00017095,2]
[365336016,1749605448771,-2818.71544891,0.0001713,2]
[365336017,1749605448780,-197.15863178,0.00017172,2]
[365336018,1749605448789,-203.0,0.00017237,2]
[365336019,1749605448798,-154.5,0.0001726,2]
[365336020,1749605448808,-292.87,0.0001726,2]
[365336021,1749605448817,-499.06,0.0001726,2]
[365336022,1749605448826,-622.6,0.0001726,2]
[365336023,1749605448835,-490.0,0.0001726,2]
[365336024,1749605448844,-490.0,0.0001726,2]
[365336025,1749605448854,-548.65,0.0001726,2]
[365336026,1749605448863,-322.98,0.0001726,2]
[365336027,1749605448873,-490.0,0.0001726,2]
[365336028,1749605448882,-353.27557064,0.0001726,2]
[365336029,1749605448892,-490.0,0.0001726,2]
[365336030,1749605448901,-490.0,0.0001726,2]
[365336031,1749605448911,-490.0,0.0001726,2]
[365336032,1749605448922,-556.43,0.0001726,2]
[365336033,1749605448935,-490.0,0.0001726,2]
[365336034,1749605448945,-490.0,0.0001726,2]
[365336035,1749605448955,-895.27,0.0001726,2]
[365336036,1749605448964,-298.5,0.0001726,2]
[365336037,1749605448974,-1094.07,0.0001726,2]
[365336038,1749605448983,-490.0,0.0001726,2]
[365336039,1749605448993,-490.0,0.0001726,2]
[365336040,1749605449004,-376.55955283,0.0001726,2]
[365336041,1749605449179,-695.39,0.0001726,2]
[365336042,1749605449190,-490.0,0.0001726,2]
[365336043,1749605449205,-490.0,0.0001726,2]
[365336044,1749605449215,-490.0,0.0001726,2]
[365336045,1749605449225,-335.87547961,0.0001726,2]
[365336046,1749605449234,-490.0,0.0001726,2]
[365336047,1749605449243,-490.0,0.0001726,2]
[365336048,1749605449253,-490.0,0.0001726,2]
[365336049,1749605449262,-1951.34,0.00017298,2]
[365336050,1749605449271,-833.29909032,0.00017363,2]
[365336051,1749605449281,-214.32,0.00017383,2]
[365336052,1749605449290,-43038.26,0.00017395,2]
[365336053,1749605449300,-352.88,0.00017424,2]
[365336054,1749605449310,-490.0,0.00017424,2]
[365336055,1749605449319,-490.0,0.00017424,2]
[365336056,1749605449329,-490.0,0.00017424,2]
[365336057,1749605449339,-490.0,0.00017424,2]
[365336058,1749605449349,-490.0,0.00017424,2]
[365336059,1749605449358,-556.43,0.00017424,2]
[365336060,1749605449368,-490.0,0.00017424,2]
[365336061,1749605449377,-490.0,0.00017424,2]
[365336062,1749605449387,-895.27,0.00017424,2]
[365336063,1749605449396,-1094.07,0.00017424,2]
[365336064,1749605449405,-490.0,0.00017424,2]
[365336065,1749605449415,-490.0,0.00017424,2]
[365336066,1749605449425,-695.39,0.00017424,2]
[365336067,1749605449435,-490.0,0.00017424,2]
[365336068,1749605449444,-490.0,0.00017424,2]
[365336069,1749605449455,-548.20716614,0.00017424,2]
[365336070,1749605449464,-490.0,0.00017424,2]
[365336071,1749605449474,-283.32800355,0.00017424,2]
[365336072,1749605449486,-368.76739892,0.00017424,2]
[365336073,1749605449496,-197.15863178,0.00017513,2]
[365336074,1749605449508,-2818.71544891,0.00017525,2]
[365336075,1749605449517,-1719.3,0.00017551,2]
[365336076,1749605449527,-480.73,0.00017589,2]
[365336077,1749605449536,-166.98575438,0.00017589,2]
[365336078,1749605449546,-490.0,0.00017589,2]
[365336079,1749605449556,-490.0,0.00017589,2]
[365336080,1749605449566,-490.0,0.00017589,2]
[365336081,1749605449575,-556.43,0.00017589,2]
[365336082,1749605449585,-490.0,0.00017589,2]
[365336083,1749605449595,-638.94,0.00017589,2]
[365336084,1749605449605,-895.27,0.00017589,2]
[365336085,1749605449614,-1094.07,0.00017589,2]
[365336086,1749605449624,-490.0,0.00017589,2]
[365336087,1749605449634,-490.0,0.00017589,2]
[365336088,1749605449643,-695.39,0.00017589,2]
[365336089,1749605449652,-490.0,0.00017589,2]
[365336090,1749605449662,-490.0,0.00017589,2]
[365336091,1749605449672,-384.99224473,0.00017589,2]
[365336092,1749605449681,-490.0,0.00017753,2]
[365336093,1749605449691,-490.0,0.00017753,2]
[365336094,1749605449700,-490.0,0.00017753,2]
[365336095,1749605449710,-556.43,0.00017753,2]
[365336096,1749605449719,-490.0,0.00017753,2]
[365336097,1749605449728,-895.27,0.00017753,2]
[365336098,1749605449737,-1094.07,0.00017753,2]
[365336099,1749605449746,-257.52251924,0.00017753,2]
[365336100,1749605449756,-490.0,0.00017753,2]
[365336101,1749605449765,-695.39,0.00017753,2]
[365336102,1749605449775,-490.0,0.00017753,2]
[365336103,1749605449785,-490.0,0.00017753,2]
[365336104,1749605449794,-500.0,0.00017808,2]
[365336105,1749605449803,-398.24062928,0.00017808,2]
[365336106,1749605449813,-197.15863178,0.00017854,2]
[365336107,1749605449822,-251.56265964,0.000179,2]
[365336108,1749605449832,-490.0,0.00017917,2]
[365336109,1749605449842,-490.0,0.00017917,2]
[365336110,1749605449852,-490.0,0.00017917,2]
[365336111,1749605449862,-556.43,0.00017917,2]
[365336112,1749605449872,-490.0,0.00017917,2]
[365336113,1749605449883,-895.27,0.00017917,2]
[365336114,1749605449892,-1094.07,0.00017917,2]
[365336115,1749605449902,-490.0,0.00017917,2]
[365336116,1749605449911,-695.39,0.00017917,2]
[365336117,1749605449922,-490.0,0.00017917,2]
[365336118,1749605449936,-385.60654922,0.00017917,2]
[365336119,1749605449945,-30.75262778,0.00017921,2]
[365336120,1749605449962,-2200.0,0.00017921,2]
[365336121,1749605449974,-587.96282113,0.00017921,2]
[365336122,1749605449984,-420.0,0.00017963,2]
[365336123,1749605449994,-420.0,0.00017963,2]
[365336124,1749605450003,-7221.92149915,0.00018,2]
[365336125,1749605450128,-480.9744205,0.00016438,2]
[365336126,1749605450138,-462.99869798,0.00016438,2]
[365336127,1749605450148,-490.0,0.00016438,2]
[365336128,1749605450167,-490.0,0.00016438,2]
[365336129,1749605450179,-490.0,0.00016438,2]
[365336130,1749605450190,-490.0,0.00016438,2]
[365336131,1749605450199,-278.85050325,0.00016438,2]
[365336132,1749605450210,-502.08404938,0.00016602,2]
[365336133,1749605450221,-385.10052275,0.00016602,2]
[365336134,1749605450230,-490.0,0.00016602,2]
[365336135,1749605450239,-452.52959796,0.00016602,2]
[365336136,1749605450248,-537.54335649,0.00016602,2]
[365336137,1749605450258,-418.02428025,0.00016767,2]
[365336138,1749605450267,-3536.19240275,0.00018,2]
[365336139,1749605450276,-10965.14614277,0.00018,2]
[365336140,1749605450286,-1109.89102825,0.00018,2]
[365336141,1749605450301,-464.91629675,0.00016438,2]
[365336142,1749605450311,-928.25925748,0.00018,2]
[365336143,1749605450320,-666.0,0.00018081,2]
[365336144,1749605450330,-490.0,0.00018082,2]
[365336145,1749605450339,-490.0,0.00018082,2]
[365336146,1749605450348,-490.0,0.00018082,2]
[365336147,1749605450358,-556.43,0.00018082,2]
[365336148,1749605450367,-490.0,0.00018082,2]
[365336149,1749605450376,-895.27,0.00018082,2]
[365336150,1749605450386,-1094.07,0.00018082,2]
[365336151,1749605450395,-490.0,0.00018082,2]
[365336152,1749605450405,-695.39,0.00018082,2]
[365336153,1749605450414,-319.80144711,0.00018082,2]
[365336154,1749605450425,-203.0,0.00018093,3]
[365336155,1749605450435,-461.87,0.0001813,2]
[365336156,1749605450446,-197.15863178,0.00018195,2]
[365336157,1749605450455,-207.4,0.00018219,2]
[365336158,1749605450465,-151.0,0.00018219,2]
[365336159,1749605450475,-490.0,0.00018246,2]
[365336160,1749605450484,-490.0,0.00018246,2]
[365336161,1749605450493,-320.26,0.00018246,2]
[365336162,1749605450503,-556.43,0.00018246,2]
[365336163,1749605450512,-490.0,0.00018246,2]
[365336164,1749605450521,-895.27,0.00018246,2]
[365336165,1749605450531,-1094.07,0.00018246,2]
[365336166,1749605450540,-490.0,0.00018246,2]
[365336167,1749605450549,-695.39,0.00018246,2]
[365336168,1749605450558,-2818.71544891,0.00018317,2]
[365336169,1749605450567,-500.0,0.00018356,2]
[365336170,1749605450577,-514.29074974,0.0001841,2]
[365336171,1749605450587,-335.65,0.0001841,2]
[365336172,1749605450597,-556.43,0.0001841,2]
[365336173,1749605450606,-490.0,0.0001841,2]
[365336174,1749605450615,-895.27,0.0001841,2]
[365336175,1749605450625,-1094.07,0.0001841,2]
[365336176,1749605450634,-490.0,0.0001841,2]
[365336177,1749605450643,-695.39,0.0001841,2]
[365336178,1749605450654,-197.15863178,0.00018536,2]
[365336179,1749605450664,-1000.0,0.00018551,2]
[365336180,1749605450675,-165.32,0.00018561,2]
[365336181,1749605450685,-556.43,0.00018575,2]
[365336182,1749605450694,-490.0,0.00018575,2]
[365336183,1749605450703,-895.27,0.00018575,2]
[365336184,1749605450714,-1094.07,0.00018575,2]
[365336185,1749605450725,-490.0,0.00018575,2]
[365336186,1749605450735,-695.39,0.00018575,2]
[365336187,1749605450744,-225.0,0.00018666,2]
[365336188,1749605450754,-167.5,0.00018692,2]
[365336189,1749605450764,-471.24,0.00018692,2]
[365336190,1749605450773,-200.0,0.00018692,2]
[365336191,1749605450783,-168.67,0.00018692,2]
[365336192,1749605450792,-500.0,0.00018712,2]
[365336193,1749605450802,-2818.71544891,0.00018713,2]
[365336194,1749605450812,-556.43,0.00018739,2]
[365336195,1749605450821,-490.0,0.00018739,2]
[365336196,1749605450830,-895.27,0.00018739,2]
[365336197,1749605450840,-1094.07,0.00018739,2]
[365336198,1749605450849,-490.0,0.00018739,2]
[365336199,1749605450858,-695.39,0.00018739,2]
[365336200,1749605450867,-197.15863178,0.00018877,2]
[365336201,1749605450877,-556.43,0.00018904,2]
[365336202,1749605450886,-490.0,0.00018904,2]
[365336203,1749605450896,-895.27,0.00018904,2]
[365336204,1749605450906,-1094.07,0.00018904,2]
[365336205,1749605450915,-490.0,0.00018904,2]
[365336206,1749605450926,-695.39,0.00018904,2]
[365336207,1749605450936,-203.0,0.00018948,4]
[365336208,1749605450946,-150.0,0.00018954,7]
[365336209,1749605450955,-250.0,0.00019,2]
[365336210,1749605450964,-158.09911,0.00019,2]
[365336211,1749605450975,-556.43,0.00019068,2]
[365336212,1749605450984,-490.0,0.00019068,2]
[365336213,1749605450993,-895.27,0.00019068,2]
[365336214,1749605451005,-1094.07,0.00019068,2]
[365336215,1749605451014,-490.0,0.00019068,2]
[365336216,1749605451024,-695.39,0.00019068,2]
[365336217,1749605451033,-2818.71544891,0.00019108,2]
[365336218,1749605451046,-460.0,0.00019178,2]
[365336219,1749605451059,-163.5534566,0.00019178,2]
[365336220,1749605451072,-500.0,0.00019178,2]
[365336221,1749605451085,-500.0,0.00019178,2]
[365336222,1749605451095,-206.55116095,0.00019178,2]
[365336223,1749605451105,-151.0,0.00019178,2]
[365336224,1749605451119,-169.84,0.00019178,2]
[365336225,1749605451131,-1000.0,0.000192,2]
[365336226,1749605451143,-197.15863178,0.00019218,2]
[365336227,1749605451154,-556.43,0.00019232,2]
[365336228,1749605451166,-490.0,0.00019232,2]
[365336229,1749605451179,-895.27,0.00019232,2]
[365336230,1749605451191,-1094.07,0.00019232,2]
[365336231,1749605451202,-490.0,0.00019232,2]
[365336232,1749605451213,-695.39,0.00019232,2]
[365336233,1749605451223,-999.99,0.00019339,2]
[365336234,1749605451233,-150.99,0.00019339,2]
[365336235,1749605451245,-7220.6,0.00019339,2]
[365336236,1749605451258,-219.39,0.00019339,7]
[365336237,1749605451269,-151.0,0.00019397,2]
[365336238,1749605451281,-556.43,0.00019397,2]
[365336239,1749605451293,-490.0,0.00019397,2]
[365336240,1749605451305,-895.27,0.00019397,2]
[365336241,1749605451317,-1094.07,0.00019397,2]
[365336242,1749605451329,-490.0,0.00019397,2]
[365336243,1749605451341,-695.39,0.00019397,2]
[365336244,1749605451352,-209194.23714868,0.000194,2]
[365336245,1749605451369,-3378.72881126,0.000194,2]
[365336246,1749605451383,-444.33,0.000194,2]
[365336247,1749605451396,-557.084731,0.000194,2]
[365336248,1749605451410,-858.6849167,0.000194,2]
[365336249,1749605451426,-109493.27232186,0.000194,2]
[365336250,1749605451438,-806.79,0.00019418,2]
[365336251,1749605451451,-461.25,0.00019418,2]
[365336252,1749605451464,-6857.70336005,0.000195,2]
[365336253,1749605451475,-2818.71544891,0.00019504,2]
[365336254,1749605451486,-197.15863178,0.00019559,2]
[365336255,1749605451497,-556.43,0.00019561,2]
[365336256,1749605451508,-490.0,0.00019561,2]
[365336257,1749605451518,-895.27,0.00019561,2]
[365336258,1749605451528,-1094.07,0.00019561,2]
[365336259,1749605451539,-617.8545531,0.00019561,2]
[365336260,1749605451552,-695.39,0.00019561,2]
[365336261,1749605451566,-215.0738,0.00019588,2]
[365336262,1749605451577,-156.587,0.00019588,2]
[365336263,1749605451587,-587.0,0.00019631,2]
[365336264,1749605451597,-433.3572,0.00019689,2]
[365336265,1749605451607,-500.0,0.00019699,2]
[365336266,1749605451618,-25882.18306575,0.000197,2]
[365336267,1749605451630,-556.43,0.00019726,2]
[365336268,1749605451643,-593.74,0.00019726,2]
[365336269,1749605451654,-895.27,0.00019726,2]
[365336270,1749605451664,-1094.07,0.00019726,2]
[365336271,1749605451675,-695.39,0.00019726,2]